Cogmind - Beta 15 @@@ ROGUE MODE // 2025.10.10 @ 14:20:39 Player: DietSnapple Result: Destroyed by H-61 Shepherd with Heavy Assault Cannon Performance ------------- Evolutions (3) 1500 Regions Visited (6) 1200 Robots Destroyed (70) 350 Value Destroyed (1822) 1822 Prototype IDs (27) 540 Alien Tech Used (0) 0 Bonus (635) 635 TOTAL SCORE: 6047 Bonus ------- High Alert Combat Kills 151 Follower Combat Kills 184 Aligned with FarCom 300 Cogmind --------- Core Integrity 0/700 Matter 19/300 Energy 99/100 System Corruption 0% Temperature Cool (0) Movement Core (350) Ox6 Location -7/Factory Parts ------- > --- POWER (1) -------- (None) > --- PROPULSION (5) --- (None) > --- UTILITY (5) ------ Large Storage Unit > --- WEAPON (2) ------- (None) > --- INVENTORY (15) --- Light Nuclear Core Flight Unit Flight Unit Cesium-ion Thruster Compact Matter Pod (0) Utility Shielding Light Armor Plating Improved Light Armor Plating Bomb Drone Bay Minigun Field Lobotomy Kit (5) Katana Peak State ------------ > --- POWER ------------ Heavy Deuterium Engine > --- PROPULSION ------- Light Treads Improved Treads Armored Treads > --- UTILITY ---------- Large Storage Unit Improved Signal Interpreter Heavy Armor Plating Hardened Medium Armor Plating > --- WEAPON ----------- Heavy Missile Launcher Heavy Missile Launcher > --- INVENTORY -------- Light Nuclear Core Flight Unit Flight Unit Cesium-ion Thruster Compact Matter Pod Utility Shielding Light Armor Plating Improved Light Armor Plating Bomb Drone Bay Minigun Heavy Missile Launcher Field Lobotomy Kit Katana Katana [Rating: 37] Favorites ----------- Power Ion Engine Engine Ion Engine Power Core Nuclear Core Propulsion Light Treads Treads Light Treads Wheel Wheel Flight Unit Flight Unit Utility Large Storage Unit Device Heat Sink Storage Large Storage Unit Processor Signal Interpreter Protection Heavy Armor Plating Weapon Medium Laser Energy Gun Medium Laser Ballistic Gun Minigun Ballistic Cannon Improved Light Cannon Launcher Rocket Launcher Special Weapon Mining Laser Slashing Weapon Katana Build | -11 -10 -10 -10 -9 -8 -7 ------- Run | Yrd Mat Min Exi Min Mat Fac Slots Evolved 6 | . . . . . 4 2 Power . | . . . . . . . Propulsion 3 | . . . . . 1 2 Utility 3 | . . . . . 3 . Weapon . | . . . . . . . Parts Attached 49 | 7 4 1 2 1 30 4 Power 8 | 1 1 . . 1 4 1 Engine 7 | 1 1 . . 1 3 1 Core 1 | . . . . . 1 . Reactor . | . . . . . . . Propulsion 10 | 2 . . 2 . 6 . Treads 5 | 2 . . . . 3 . Leg . | . . . . . . . Wheel 3 | . . . 2 . 1 . Hover . | . . . . . . . Flight 2 | . . . . . 2 . Utility 13 | 1 2 . . . 10 . Device 3 | . 1 . . . 2 . Storage 2 | 1 1 . . . . . Processor 2 | . . . . . 2 . Hackware . | . . . . . . . Protection 6 | . . . . . 6 . Artifact . | . . . . . . . Weapon 18 | 3 1 1 . . 10 3 Energy Gun 5 | 3 1 . . . 1 . Energy Cannon . | . . . . . . . Ballistic Gun 4 | . . . . . 4 . Ballistic Cannon 1 | . . . . . 1 . Launcher 6 | . . . . . 3 3 Special Weapon 1 | . . 1 . . . . Impact Weapon . | . . . . . . . Slashing Weapon 1 | . . . . . 1 . Piercing Weapon . | . . . . . . . Special Melee Weapon . | . . . . . . . Unidentified Prototypes 4 | . . . . . 3 1 Parts Lost 23 | . 2 2 . . 8 11 Power 2 | . 1 . . . . 1 Propulsion 6 | . . 1 . . 2 3 Utility 6 | . . . . . 3 3 Weapon 9 | . 1 1 . . 3 4 Highest Loss Streak 9 | . 1 1 . . 4 9 To Critical Strikes 1 | . . 1 . . . . Average Backups 11 | 4 9 11 11 13 13 13 Power 2 | . 2 3 3 1 1 1 Propulsion 2 | 3 3 3 2 1 1 3 Utility 3 | . 2 3 3 5 3 4 Weapon 3 | . 1 2 3 3 5 3 Tool/Special . | . . . . . . . Unused Backups 23 | . 2 . . 2 7 12 Power 2 | . . . . 1 . 1 Propulsion 6 | . 2 . . 1 1 2 Utility 6 | . . . . . 1 5 Weapon 8 | . . . . . 5 3 Tool/Special 1 | . . . . . . 1 Average Slot Usage (%) 85 | . 94 84 95 88 82 58 Engine 10 | . 13 14 14 14 5 4 Treads 14 | . 28 17 4 . 8 17 Wheel 6 | . . . 18 28 6 . Flight 1 | . . . . . 5 . Device 6 | . 2 14 14 3 4 . Storage 13 | . 21 14 14 14 9 7 Processor 3 | . . . . . 8 4 Protection 4 | . . . . . 13 10 Energy Gun 13 | . 27 18 14 14 1 . Ballistic Gun 3 | . . . . . 11 4 Launcher 1 | . . . . . 2 2 Special Weapon 3 | . . 5 14 14 . . Peak Build Rating 37 | 6 8 8 9 9 32 37 Average Rating 13 | 4 7 6 8 8 23 25 On Entrance 10 | . 6 8 7 9 9 31 Naked Turns . | . . . . . . . Heaviest Build 68 | 14 33 30 29 29 54 68 Greatest Support 63 | 40 40 40 20 20 63 63 Greatest Overweight (x) 10 | 1 . 1 1 1 10 8 Average Overweight (x) 1 | . . . 1 1 2 . Largest Inventory Capacity 15 | 8 15 15 15 15 15 15 Average Capacity 14 | 6 12 15 15 15 15 15 Most Carried 15 | 6 12 12 12 15 15 15 Average Carried 12 | 4 9 11 11 13 14 14 Final Capacity 15 | 8 15 15 15 15 15 15 Final Carried 15 | 6 11 12 12 14 15 13 Class Distribution -------------------- 92% | Mutant 7% | Skirmisher Dominant Class ---------------- Mutant | -10/Materials Mutant | -10/Mines Mutant | -10/Exiles Mutant | -9/Mines Mutant | -8/Materials Mutant | -7/Factory Resources | -11 -10 -10 -10 -9 -8 -7 ----------- Run | Yrd Mat Min Exi Min Mat Fac Matter Collected 1321 | 176 117 15 . 30 836 147 Remotely . | . . . . . . . Salvage Created 2181 | . 348 217 . . 1279 337 Parts 120 | . 26 16 . . 61 17 Haulers Intercepted 6 | . 1 . . . 5 . Recyclers Shooed 4 | . 1 . . . 3 . Parts Field Recycled . | . . . . . . . Retrieved Matter . | . . . . . . . Parts Self-Destructed . | . . . . . . . Prevented . | . . . . . . . Kills | -11 -10 -10 -10 -9 -8 -7 ------- Run | Yrd Mat Min Exi Min Mat Fac Combat Hostiles Destroyed 49 | . 9 8 . . 28 4 Melee 1 | . . . . . . 1 Guns 32 | . 9 8 . . 15 . Cannons 2 | . . . . . 2 . AOE 14 | . . . . . 11 3 Classes Destroyed 14 | . 4 2 . . 6 2 Worker 8 | . . . . . 5 3 Tunneler 1 | . . 1 . . . . Hauler 6 | . 1 . . . 5 . Recycler 4 | . . . . . 1 3 Mechanic 1 | . . . . . . 1 Operator 2 | . 1 . . . 1 . Watcher 1 | . . . . . 1 . Swarmer 14 | . 3 3 . . 8 . Grunt 24 | . 6 3 . . 14 1 Brawler 1 | . . . . . 1 . Duelist 2 | . . . . . 2 . Sentry 4 | . . . . . 3 1 Specialist 2 | . . . . . . 2 Assembled 2 | . . 2 . . . . Best Kill Streak 10 | . 3 3 . . 10 7 Combat Bots Only 8 | . 3 3 . . 8 2 Max Kills in Single Turn 4 | . 1 2 . . 4 2 Gunslinging . | . . . . . . . Exploded 3 | . . . . . 3 1 Melee 1 | . . . . . . 1 Uniques/NPCs Destroyed . | . . . . . . . Combat | -11 -10 -10 -10 -9 -8 -7 -------- Run | Yrd Mat Min Exi Min Mat Fac Hostile Shots Fired 319 | . 45 27 . . 146 101 Missed 80 | . 7 9 . . 38 26 Hits 239 | . 38 18 . . 108 75 Melee 11 | . . . . . 11 . Projectile 228 | . 38 18 . . 97 75 Critical Strikes 9 | . . 1 . . 2 6 Damage Taken 4648 | . 475 175 . 7 1875 2116 Core 1312 | . 60 21 . . 522 709 Absorbed by Shields . | . . . . . . . Redirected to Shielding 12 | . . . . . 12 . Core Remaining (%) 57 | 100 . . . 67 5 . Volleys Fired 194 | . 36 21 . 1 125 11 Largest 2 | . 2 2 . 1 2 2 Hottest 100 | . 90 100 . 100 55 78 Shots Fired 272 | . 69 24 . 1 161 17 Gun 215 | . 69 21 . . 125 . Cannon 15 | . . . . . 15 . Launcher 38 | . . . . . 21 17 Special 4 | . . 3 . 1 . . Kinetic 116 | . . . . . 116 . Thermal 118 | . 69 24 . 1 24 . Explosive 38 | . . . . . 21 17 Electromagnetic . | . . . . . . . Robot Hit Streak 12 | . 12 8 . . 9 7 Robot Miss Streak 4 | . 3 2 . 3 4 2 Penetration Max . | . . . . . . . Secondary Targets 1 | . . . . . 1 . Max Gunslinging Chain 1 | . . . . . 1 . Shots Hit Robots 181 | . 50 15 . . 100 16 Core Hits 129 | . 22 14 . . 74 19 Critical Kills . | . . . . . . . Critical Parts Destroyed . | . . . . . . . Critical Strikes 10 | . 4 4 . . 1 1 Burn 8 | . 4 4 . . . . Blast 1 | . . . . . 1 . Sever 1 | . . . . . . 1 Melee Attacks 7 | . . . . . 1 6 Impact . | . . . . . . . Slashing 7 | . . . . . 1 6 Piercing . | . . . . . . . Sneak Attacks . | . . . . . . . Combat Hostiles . | . . . . . . . Follow-up Attacks . | . . . . . . . Damage Inflicted 6203 | . 607 219 . 14 3552 1811 Guns 2418 | . 603 213 . . 1602 . Cannons 285 | . . . . . 285 . Explosions 3282 | . . . . . 1653 1629 Melee 182 | . . . . . . 182 Ramming 36 | . 4 6 . 14 12 . Kinetic 1515 | . . . . . 1515 . Thermal 1188 | . 603 213 . . 372 . Explosive 3282 | . . . . . 1653 1629 Electromagnetic . | . . . . . . . Impact . | . . . . . . . Slashing 182 | . . . . . . 182 Piercing . | . . . . . . . Highest Corruption . | . . . . . . . Average Corruption . | . . . . . . . Corruption Purged . | . . . . . . . Corruption Blocked . | . . . . . . . Overload Shots . | . . . . . . . Overflow Damage 80 | . . . . . 9 71 Projectiles 3 | . . . . . 3 . Explosions 77 | . . . . . 6 71 Melee . | . . . . . . . Knockbacks 3 | . . . . 1 2 . Impact 1 | . . . . 1 . . Kinetic 2 | . . . . . 2 . Secondary . | . . . . . . . Self-Inflicted Damage 105 | . . . . 7 92 6 Shots 4 | . . . . . 3 1 Rammed 6 | . 1 1 . 2 2 . Targets Rammed 6 | . 1 1 . 2 2 . Kicked . | . . . . . . . Crushed . | . . . . . . . Highest Temperature 363 | . 234 27 . 20 363 60 Average Temperature 67 | . 68 9 . 12 80 22 Received Heat Transfer 1187 | . 219 62 . . 594 312 Effects 3 | . . . . . 3 . Interference 2 | . . . . . 2 . Matter Decay 1 | . . . . . 1 . Siege Activations . | . . . . . . . Martial Activations . | . . . . . . . Shielding Activations . | . . . . . . . Robots Disrupted . | . . . . . . . Combat Hostiles . | . . . . . . . Robots Corrupted . | . . . . . . . Combat Hostiles . | . . . . . . . Parts Fried . | . . . . . . . Impact Corruptions . | . . . . . . . Robots Melted . | . . . . . . . Combat Hostiles . | . . . . . . . Parts Melted 9 | . 6 3 . . . . Heat Transferred 3511 | . 1883 925 . . 703 . Parts Sabotaged . | . . . . . . . Parts Stolen . | . . . . . . . Parts Stripped . | . . . . . . . Power Chain Reactions . | . . . . . . . Alert | -11 -10 -10 -10 -9 -8 -7 ------- Run | Yrd Mat Min Exi Min Mat Fac Maximum Alert Level 2 | . . . . . 2 1 Low Security (%) 69 | 100 100 100 . 100 17 32 Level 1 6 | . . . . . 2 67 Level 2 24 | . . . . . 80 . Level 3 . | . . . . . . . Level 4 . | . . . . . . . Level 5 . | . . . . . . . High Security . | . . . . . . . Max Security . | . . . . . . . Peak Influence 597 | . 86 60 . 1 597 251 Initial 251 | . . 16 . . . 251 Average 160 | . 19 7 . . 449 209 Influence Increases 1980 | . 279 157 . 1 1276 267 Destroy 0b10 Robot/C 1100 | . 180 140 . . 700 80 Destroy 0b10 Robot/NC 120 | . 10 5 . . 70 35 Destroy Leader 224 | . 42 10 . . 142 30 Allied During Kill 49 | . . 1 . . 48 . Successful Hack 35 | . 17 . . . 18 . Disable Machine 75 | . . . . . 60 15 Destroy Structure 182 | . . 1 . 1 118 62 Lose Combat Pursuer 195 | . 30 . . . 120 45 Influence Decreases 1778 | . 235 201 . 1 723 618 Entered New Map 330 | . . 28 . . . 302 Time Decay 1128 | . 215 163 . 1 543 206 Lost Part 220 | . 20 10 . . 80 110 Lost Ally 100 | . . . . . 100 . Squads Dispatched 8 | . 1 . . . 5 2 Investigation 1 | . . . . . 1 . Extermination . | . . . . . . . Reinforcement 4 | . 1 . . . 1 2 Assault 2 | . . . . . 2 . Garrison 1 | . . . . . 1 . Intercept . | . . . . . . . Searches Triggered . | . . . . . . . Construction Impeded . | . . . . . . . Haulers Reinforced . | . . . . . . . Active Scanning Responses . | . . . . . . . Cargo Convoy Interrupts . | . . . . . . . Stealth | -11 -10 -10 -10 -9 -8 -7 --------- Run | Yrd Mat Min Exi Min Mat Fac Distress Signals 4 | . . . . . 4 . Communications Jammed . | . . . . . . . Distress Signals . | . . . . . . . Times Spotted 107 | . 27 9 . 1 61 9 Peak Tracking Total 8 | . 6 2 . . 8 4 Tactical Retreats 10 | . 2 . . . 6 2 Traps | -11 -10 -10 -10 -9 -8 -7 ------- Run | Yrd Mat Min Exi Min Mat Fac Traps Triggered 3 | . 1 . . . . 2 Indirectly . | . . . . . . . Trap Hack Attempts . | . . . . . . . Triggered . | . . . . . . . Disarmed . | . . . . . . . Reprogrammed . | . . . . . . . Reused . | . . . . . . . Traps Extracted . | . . . . . . . Installed . | . . . . . . . Triggered . | . . . . . . . Machines | -11 -10 -10 -10 -9 -8 -7 ---------- Run | Yrd Mat Min Exi Min Mat Fac Machines Disabled 5 | . . . . . 4 1 Max in Single Turn 1 | . . . . . 1 1 Garrison Access 1 | . . . . . 1 . Machines Repaired . | . . . . . . . Machines Dismantled . | . . . . . . . Machines Sabotaged . | . . . . . . . Overloaded Fab Kills . | . . . . . . . Hacking | -11 -10 -10 -10 -9 -8 -7 --------- Run | Yrd Mat Min Exi Min Mat Fac Machines Accessed 12 | . 5 . 1 1 5 . Terminals 8 | . 4 . . . 4 . Fabricators . | . . . . . . . Repair Stations . | . . . . . . . Recycling Units 1 | . 1 . . . . . Scanalyzers . | . . . . . . . Garrison Access 1 | . . . . . 1 . Total Hacks 24 | . 7 . 1 1 15 . Successful 11 | . 4 . 1 1 5 . Failed 13 | . 3 . . . 10 . Catastrophic 3 | . 2 . . . 1 . Database Lockouts . | . . . . . . . Manual 20 | . 6 . 1 . 13 . Terminals 19 | . 6 . . . 13 . Fabricators . | . . . . . . . Repair Stations . | . . . . . . . Recycling Units 1 | . 1 . . . . . Scanalyzers . | . . . . . . . Garrison Access 2 | . . . . . 2 . Terminal Hacks 4 | . . . 1 1 2 . Open Door 1 | . . . . 1 . . Level Access Points 1 | . . . . . 1 . Hauler Manifests 1 | . . . . . 1 . Proto ID Catalog 1 | . . . 1 . . . Fabricator Hacks . | . . . . . . . Repair Station Hacks . | . . . . . . . Recycling Unit Hacks 1 | . 1 . . . . . Report Inventory 1 | . 1 . . . . . Scanalyzer . | . . . . . . . Garrison Access Hacks 1 | . . . . . 1 . Seal Access 1 | . . . . . 1 . Unauthorized Hacks 5 | . 3 . . . 2 . Terminals 5 | . 3 . . . 2 . Botnet 3 | . 2 . . . 1 . Operators 2 | . 1 . . . 1 . Fabricators . | . . . . . . . Repair Stations . | . . . . . . . Recycling Units . | . . . . . . . Scanalyzers . | . . . . . . . Garrison Access . | . . . . . . . Data Cores Recovered . | . . . . . . . Used . | . . . . . . . Hacking Detections 7 | . 3 . . . 4 . Full Trace Events 1 | . . . . . 1 . Feedback Events . | . . . . . . . Feedback Blocked . | . . . . . . . Robot Schematics Acquired . | . . . . . . . Robots Built . | . . . . . . . Authchips . | . . . . . . . Time . | . . . . . . . Total Robot Build Rating . | . . . . . . . Part Schematics Acquired . | . . . . . . . Parts Built . | . . . . . . . Authchips . | . . . . . . . Time . | . . . . . . . Total Part Build Rating . | . . . . . . . Parts Repaired . | . . . . . . . Time . | . . . . . . . Parts Recycled . | . . . . . . . Recycled Matter . | . . . . . . . Retrieved Matter . | . . . . . . . Retrieved Components . | . . . . . . . Parts Scanalyzed . | . . . . . . . Part Schematics Acquired . | . . . . . . . Parts Damaged . | . . . . . . . Bothacking | -11 -10 -10 -10 -9 -8 -7 ------------ Run | Yrd Mat Min Exi Min Mat Fac Used RIF Installer . | . . . . . . . Robots Hacked . | . . . . . . . Non-combat . | . . . . . . . Combat . | . . . . . . . Robot Hacks Applied . | . . . . . . . Relay Couplers Released . | . . . . . . . Fabnet Peak Effective % . | . . . . . . . Robots Rewired . | . . . . . . . Allies Hacked . | . . . . . . . Hacks Repelled . | . . . . . . . Allies | -11 -10 -10 -10 -9 -8 -7 -------- Run | Yrd Mat Min Exi Min Mat Fac Total Allies 6 | . . 1 . 5 . . Largest Group 5 | . . 1 . 5 5 . Highest-Rated Group 82 | . . 31 . 82 82 . Highest-Rated Ally 31 | . . 31 . 31 31 . Total Orders . | . . . . . . . Ally Attacks 42 | . . 1 . . 41 . Total Damage 365 | . . 22 . . 343 . Kills 9 | . . 1 . . 8 . Allies Corrupted . | . . . . . . . Allies Melted . | . . . . . . . Intel | -11 -10 -10 -10 -9 -8 -7 ------- Run | Yrd Mat Min Exi Min Mat Fac Active Infowar (turns) 880 | . . . . . 880 . Sensors 431 | . . . . . 431 . Traps 449 | . . . . . 449 . Robot Analysis Total . | . . . . . . . Derelict Logs Recovered 5 | . . 2 . 3 . . Drone Launches . | . . . . . . . Drone Recoveries . | . . . . . . . Exploration | -11 -10 -10 -10 -9 -8 -7 ------------- Run | Yrd Mat Min Exi Min Mat Fac Turns Passed 5587 | 137 1148 1323 299 631 1618 431 Spaces Moved 3130 | 84 628 586 252 629 768 183 Core 70 | 16 . . . . 31 23 Treads 1734 | 68 628 586 39 . 253 160 Legs . | . . . . . . . Wheels 1326 | . . . 213 629 484 . Hover . | . . . . . . . Flight . | . . . . . . . Fastest Speed 50 | 50 160 160 95 95 95 163 Average Speed 155 | 144 160 215 117 95 158 198 Slowest Speed 550 | 160 160 240 240 95 550 450 Overloaded Moves . | . . . . . . . Propulsion Burnouts . | . . . . . . . Robots Hopped . | . . . . . . . Potential Cave-ins . | . . . . . . . Cave-ins Triggered . | . . . . . . . Exploration Rate (%) 58 | 5 99 94 61 91 53 3 Regions Visited 6 Branch Regions 3 Pre-discovered Areas 2 | . . . . 2 . . Known Exits Taken 1 | . . . . . 1 . Unknown Exits Taken 5 | 1 1 1 1 1 . . Scrap Searched 3 | . . 1 . 2 . . Spaces Dug 1 | . . . . . 1 . Terrain Destroyed 258 | . . 1 . 1 139 117 Melee 1 | . . . . . 1 . Projectile 3 | . . 1 . 1 1 . AOE 254 | . . . . . 137 117 Terrain Rammed . | . . . . . . . Walls Destroyed . | . . . . . . . Machines Disabled . | . . . . . . . Actions | -11 -10 -10 -10 -9 -8 -7 --------- Run | Yrd Mat Min Exi Min Mat Fac Total 3590 | 96 701 615 254 662 1036 226 Wait 122 | . 23 5 . 15 73 6 Move 3124 | 83 627 585 251 628 767 183 Hop . | . . . . . . . Pick Up 48 | 6 8 2 1 7 18 6 Fast Attach 21 | 6 2 . . . 10 3 Attach 13 | . 1 1 1 . 8 2 Detach 3 | . . . . 1 2 . Swap 21 | 1 1 . 1 1 14 3 Drop 31 | . 2 . . 7 16 6 Fire 194 | . 36 21 . 1 125 11 Melee 7 | . . . . . 1 6 Ram 3 | . . . . 2 1 . Kick . | . . . . . . . Crush 3 | . 1 1 . . 1 . Escape Stasis . | . . . . . . . Rewire . | . . . . . . . Trap . | . . . . . . . Miscellaneous . | . . . . . . . Route ------- -11/Scrapyard -10/Materials (discovered 5 exits: [*Mat x3] / [*Min] / [*Sub]) -10/Mines (discovered 4 exits: [*Mat x2] / *Exi / [*Sub]) -10/Exiles (discovered 2 exits: *Min x2) -9/Mines (discovered 2 exits: *Mat x2) -8/Materials (discovered 3 exits: *Fac x3) -7/Factory History --------- Turn | Location | Event 14 | -11/Scrapyard | Discovered new exit (range 16) 138 | -11/Scrapyard | Entered Materials 310 | -10/Materials | Build established: Mutant 367 | -10/Materials | Discovered new exit (range 7) 450 | -10/Materials | Discovered new exit (range 10) 631 | -10/Materials | Discovered new exit (range 10) 747 | -10/Materials | Discovered new exit (range 13) 1132 | -10/Materials | Discovered new exit (range 9) 1286 | -10/Materials | Entered Mines 1530 | -10/Mines | Discovered new exit (range 8) 1741 | -10/Mines | Excavation squad dispatched 1741 | -10/Mines | A large section of the Mines collapsed 1966 | -10/Mines | Learned Materials trap positions 2053 | -10/Mines | Received a Mining Laser from a helpful Derelict 2323 | -10/Mines | Discovered new exit (range 13) 2349 | -10/Mines | Discovered new exit (range 6) 2423 | -10/Mines | Received a Rocket Launcher from a helpful Derelict 2470 | -10/Mines | Deemed a non-threat by the Exiles lab entrance 2473 | -10/Mines | Discovered new exit (range 5) 2609 | -10/Mines | Entered Exiles 2648 | -10/Exiles | Discovered new exit (range 15) 2674 | -10/Exiles | Met 8R-AWN 2711 | -10/Exiles | Met EX-HEX 2741 | -10/Exiles | Met EX-BIN 2759 | -10/Exiles | Aligned with FarCom system 2760 | -10/Exiles | Given EX-Vault access code 2789 | -10/Exiles | Opened EX-Vault 2803 | -10/Exiles | Found Field Lobotomy Kit 2824 | -10/Exiles | Warned to stay clear of 0b10 Research branches 2854 | -10/Exiles | Met EX-DEC 2900 | -10/Exiles | Discovered new exit (range 10) 2908 | -10/Exiles | Left Exiles lab with Field Lobotomy Kit 2908 | -10/Exiles | Entered Mines 2910 | -9/Mines | Assisted by bots powering up and referring to "LRC-V3" 2935 | -9/Mines | Learned location of Storage (-9) 2959 | -9/Mines | Learned location of 1 exit from Materials 3018 | -9/Mines | Discovered new exit (range 9) 3038 | -9/Mines | Found the Drone Emporium 3044 | -9/Mines | Found Prototype Device 3191 | -9/Mines | Learned location of Zion (-7) 3210 | -9/Mines | Joined a pair of Derelicts in attacking an 0b10 outpost 3397 | -9/Mines | Discovered new exit (range 14) 3539 | -9/Mines | Entered Materials 3539 | -8/Materials | Accompanied by 5 allies 3539 | -8/Materials | Evolved 4 slots: Propulsion x1, Utility x3 3540 | -8/Materials | Identified exit to Factory 3541 | -8/Materials | Loaded intel: 25 trap records 3544 | -8/Materials | Led the pair of lost Derelicts to an unsafe place 3831 | -8/Materials | Lost 3 allies 3837 | -8/Materials | Garrison activated, responded to threat 3875 | -8/Materials | Destroyed 8 combat bots 3939 | -8/Materials | First assault squad dispatched 3947 | -8/Materials | Build established: Skirmisher 4072 | -8/Materials | Core integrity fell below 50% 4113 | -8/Materials | Lost 4 parts (2u2w) 4337 | -8/Materials | Build established: Mutant 4893 | -8/Materials | Core integrity fell below 20% 5157 | -8/Materials | Entered Factory 5157 | -7/Factory | Evolved 2 slots: Propulsion x2 5525 | -7/Factory | Lost 9 parts (1p3n3u2w) 5540 | -7/Factory | Core integrity fell below 50% 5565 | -7/Factory | Core integrity fell below 20% 5588 | -7/Factory | Destroyed by H-61 Shepherd with Heavy Assault Cannon Last Messages --------------- 05547_ U-05 Engineer lays Concrete. 05552_ U-05 Engineer builds a Wall. 05556_ U-05 Engineer lays Concrete. 05559_ U-05 Engineer builds a Wall. 05559_ Knocked back. 05563_ U-05 Engineer lays Concrete. 05564_ Penetrated by Slug. 05564_ Knocked back. 05565_ Acquired 7 matter. 05571_ Knocked back. 05572_ Acquired 5 matter. 05578_ Penetrated by Slug. 05578_ Knocked back. 05579_ Acquired 1 matter. 05581_ U-05 Engineer builds a Wall. 05583_ K-01 Serf collects debris. 05585_ U-05 Engineer lays Concrete. 05586_ K-01 Serf collects debris. 05586_ U-05 Engineer lays Concrete. 05588_ Katana destroyed. Map ----- +----------------------------------------------------+ | ?????????????????????????????????????????????????? | | ?????????????????????????????????????????????????? | | ?????????????????????????????????????????????????? | | ?????????????????????????????????????????????????? | | ?????????????????????????????????????????????????? | | ?????????????????????????????????????????????????? | | ?????????????????????????????????????????????????? | | ?????????????????????????????????????????????????? | | ?????????????????????????????????????????????????? | | ?????????????????????????????????????????????????? | | ????????????????????????????????????? "?????????? | | ????????????????????????????????????? "??? ???? | | ????????????????????????????????????? """ ?? | | ??????????????????###############+### """ ?? | | ??????????????????# # ?? | | ??????????????????#! """""" """""" # ??? | | ??????????????????# """""" """""" # ???? | | ??????????????????# """""" """""" # ????? | | ??????????????????# """""" """""" # """????? | | ??????????????????# # """????? | | ??????????????##??# * # """???? | | ??????????????? ######u## ####+#### """" ??? | | ?????????????????# # # """" # | | ?????????????? # ## ##### """ # | | ????????????? # k ###%% % # | | ?????????????g # @ ;## # | | ????????? % # H " | | ????????? =% %= % = ### % % ######## | | ????????? ###### ## #??????? | | ??????????? ? # # %" %"" #??????? | | ?????????????? # # # """ """ #??????? | | ??????????????? ## #### """ """ ######## | | ??????????????????## #??# # ! | | ???????????????????# !] #??# # | | ???????????????????# ]! #??### #### #!!! | | ???????????????????# ######+#### #!!! | | ???????????????????# # # #!! | | ???????????????????# # """ # # | | ???????????????????# # """"" # + | | ???????????????????# # """"" + # | | ???????????????????# # # # """ | | ???????????????????# # # # """ | | ???????????????????#] # ! # # """ | | ???????????????????######## ####### | | ??????????????????????????###########?????######## | | ?????????????????????????????????????????????????? | | ?????????????????????????????????????????????????? | | ?????????????????????????????????????????????????? | | ?????????????????????????????????????????????????? | | ?????????????????????????????????????????????????? | +----------------------------------------------------+ Best States ------------- Heat Dissipation 35 Energy Generation 18 Energy Capacity 310 Matter Stores 300 Matter Capacity 300 Sight Range 16 Robot Scan Range 15 Terrain Scan Density 10 Armor Coverage 825 Propulsion Shielding 33 Evasion (%) 41 Recoil Reduction 3 Item Schematics ----------------- None Robot Schematics ------------------ None Fabricated ------------ Nothing Repaired ---------- Nothing Alien Tech Used ----------------- None Achievements -------------- None Challenges ------------ None Game ------ Seed MachineGammaSuperbattery Manual? 0 Play Time 00:34:12 Cumulative 30.3 hours Start 2025.10.09 @ 23:03:46 End 2025.10.10 @ 14:20:39 Sessions 1 Manual Loads 0 Difficulty Rogue Special Mode None Game No. 82 Rogue 75 Adventurer 7 Explorer 0 Win Type - Total 0 Types 0/0/0/0/0/0/0/0/0/0 Lore% 8 Gallery% 27 Achievement% 27 Wizard Run 0 Options --------- Layout 0 ASCII 0 Keyboard 1 Movement Vi Keybinds 0 Fullscreen 1 Font 18/SmallcapsGlow Map View 112x50 Zoom Use 0% Tactical HUD 1 Map Filters NONE Filters NONE Steam X RUN: 71b700ab-2884-4aa0-adc3-3b66d8f97778